fUSD/lending_fUSD_20250426
["ID","MTS","AMOUNT","RATE_DAILY","PERIOD"]
[359065789,1745688640923,-789.43,0.0001988,2]
[359065790,1745688640932,-400.0,0.0001988,2]
[359065791,1745688640941,-627.0,0.0001988,2]
[359065792,1745688640950,-400.0,0.0001988,2]
[359065793,1745688640959,-400.0,0.0001988,2]
[359065794,1745688640968,-400.0,0.0001988,2]
[359065795,1745688640978,-400.0,0.0001988,2]
[359065796,1745688640988,-457.98,0.0001988,2]
[359065797,1745688640999,-421.96,0.0001988,2]
[359065798,1745688641010,-400.0,0.0001988,2]
[359065799,1745688641020,-400.0,0.0001988,2]
[359065800,1745688641031,-400.0,0.0001988,2]
[359065801,1745688641042,-559.74,0.0001988,2]
[359065802,1745688641054,-400.0,0.0001988,2]
[359065803,1745688641065,-400.0,0.0001988,2]
[359065804,1745688641076,-400.0,0.0001988,2]
[359065805,1745688641087,-681.9,0.0001988,2]
[359065806,1745688641097,-400.0,0.0001988,2]
[359065807,1745688641107,-400.0,0.0001988,2]
[359065808,1745688641117,-441.89,0.0001988,2]
[359065809,1745688641127,-400.0,0.0001988,2]
[359065810,1745688641136,-400.0,0.0001988,2]
[359065811,1745688641146,-400.0,0.0001988,2]
[359065812,1745688641158,-551.52,0.0001988,2]
[359065813,1745688641168,-400.0,0.0001988,2]
[359065814,1745688641178,-400.0,0.0001988,2]
[359065815,1745688641187,-415.64,0.0001988,2]
[359065816,1745688641200,-400.0,0.0001988,2]
[359065817,1745688641209,-400.0,0.0001988,2]
[359065818,1745688641218,-400.0,0.0001988,2]
[359065819,1745688641228,-400.0,0.0001988,2]
[359065820,1745688641240,-687.91,0.0001988,2]
[359065821,1745688641250,-400.0,0.0001988,2]
[359065822,1745688641260,-400.0,0.0001988,2]
[359065823,1745688641271,-769.36,0.0001988,2]
[359065824,1745688641282,-893.59,0.0001988,2]
[359065825,1745688641292,-400.0,0.0001988,2]
[359065826,1745688641302,-400.0,0.0001988,2]
[359065827,1745688641312,-672.38,0.0001988,2]
[359065828,1745688641322,-400.0,0.0001988,2]
[359065829,1745688641331,-400.0,0.0001988,2]
[359065830,1745688641340,-397.05282547,0.0001988,2]
[359065831,1745688641352,-134402.3,0.0001988,2]
[359065832,1745688641361,-400.0,0.0001988,2]
[359065833,1745688641372,-400.0,0.0001988,2]
[359065834,1745688641382,-587.63,0.0001988,2]
[359065835,1745688641392,-601.56,0.0001988,2]
[359065836,1745688641401,-545.17,0.0001988,2]
[359065837,1745688641410,-408.6,0.0001988,2]
[359065838,1745688641420,-400.0,0.0001988,2]
[359065839,1745688641429,-676.92,0.0001988,2]
[359065840,1745688641439,-477.62,0.0001988,2]
[359065841,1745688641447,-400.0,0.0001988,2]
[359065842,1745688641457,-500.00000003,0.0001988,2]
[359065843,1745688641467,-400.0,0.0001988,2]
[359065844,1745688641476,-708.93,0.0001988,2]
[359065845,1745688641486,-421.92,0.0001988,2]
[359065846,1745688641495,-490.84,0.0001988,2]
[359065847,1745688641505,-400.0,0.0001988,2]
[359065848,1745688641517,-3086.38,0.0001988,2]
[359065849,1745688641528,-400.0,0.0001988,2]
[359065850,1745688641540,-400.0,0.0001988,2]
[359065851,1745688641549,-738.86,0.0001988,2]
[359065852,1745688641559,-400.0,0.0001988,2]
[359065853,1745688641568,-400.0,0.0001988,2]
[359065854,1745688641578,-408.12,0.0001988,2]
[359065855,1745688641588,-793.53,0.0001988,2]
[359065856,1745688641598,-400.0,0.0001988,2]
[359065857,1745688641607,-400.0,0.0001988,2]
[359065858,1745688641619,-1143.17,0.0001988,2]
[359065859,1745688641629,-400.0,0.0001988,2]
[359065860,1745688641640,-400.0,0.0001988,2]
[359065861,1745688641649,-716.61,0.0001988,2]
[359065862,1745688641660,-400.0,0.0001988,2]
[359065863,1745688641670,-688.7,0.0001988,2]
[359065864,1745688641680,-530.99,0.0001988,2]
[359065865,1745688641689,-405.3,0.0001988,2]
[359065866,1745688641699,-678.48,0.0001988,2]
[359065867,1745688641711,-400.0,0.0001988,2]
[359065868,1745688641721,-502.6,0.0001988,2]
[359065869,1745688641732,-400.0,0.0001988,2]
[359065870,1745688641744,-885.35,0.0001988,2]
[359065871,1745688641755,-400.0,0.0001988,2]
[359065872,1745688641766,-1539.47,0.0001988,2]
[359065873,1745688641776,-471.93,0.0001988,2]
[359065874,1745688641787,-400.0,0.0001988,2]
[359065875,1745688641796,-400.0,0.0001988,2]
[359065876,1745688641805,-1047.16,0.0001988,2]
[359065877,1745688641815,-1218.93,0.0001988,2]
[359065878,1745688641825,-531.25,0.0001988,2]
[359065879,1745688641834,-523.63,0.0001988,2]
[359065880,1745688641844,-500.0,0.0001988,2]
[359065881,1745688641853,-1230.88,0.0001988,2]
[359065882,1745688641863,-400.0,0.0001988,2]
[359065883,1745688641873,-427.06,0.0001988,2]
[359065884,1745688641883,-400.0,0.0001988,2]
[359065885,1745688641892,-1138.41,0.0001988,2]
[359065886,1745688641901,-400.0,0.0001988,2]
[359065887,1745688641910,-540.19,0.0001988,2]
[359065888,1745688641920,-244.74334219,0.0001988,2]
[359065889,1745688641930,-1183.49,0.0001988,2]
[359065890,1745688641939,-500.0,0.0001988,2]
[359065891,1745688641950,-582.63,0.0001988,2]
[359065892,1745688641960,-400.0,0.0001988,2]
[359065893,1745688641970,-400.0,0.0001988,2]
[359065894,1745688641981,-1965.3,0.0001988,2]
[359065895,1745688641991,-400.0,0.0001988,2]
[359065896,1745688642001,-415.79,0.0001988,2]
[359065897,1745688642011,-749.54,0.0001988,2]
[359065898,1745688642020,-1010.11,0.0001988,2]
[359065899,1745688642030,-433.89,0.0001988,2]
[359065900,1745688642040,-867.35,0.0001988,2]
[359065901,1745688642049,-442.16,0.0001988,2]
[359065902,1745688642060,-591.6,0.0001988,2]
[359065903,1745688642070,-400.0,0.0001988,2]
[359065904,1745688642080,-400.0,0.0001988,2]
[359065905,1745688642089,-627.6,0.0001988,2]
[359065906,1745688642099,-1140.69,0.0001988,2]
[359065907,1745688642109,-888.1,0.0001988,2]
[359065908,1745688642118,-478.7,0.0001988,2]
[359065909,1745688642128,-545.56,0.0001988,2]
[359065910,1745688642138,-400.0,0.0001988,2]
[359065911,1745688642148,-400.0,0.0001988,2]
[359065912,1745688642158,-719.84,0.0001988,2]
[359065913,1745688642168,-400.0,0.0001988,2]
[359065914,1745688642179,-774.28,0.0001988,2]
[359065915,1745688642190,-102155.93,0.0001988,2]
[359065916,1745688642202,-165.37377652,0.0001988,2]
[359065917,1745688642211,-632.64,0.0001988,2]
[359065918,1745688642221,-400.0,0.0001988,2]
[359065919,1745688642231,-400.0,0.0001988,2]
[359065920,1745688642240,-1008.89,0.0001988,2]
[359065921,1745688642250,-554.98,0.0001988,2]
[359065922,1745688642259,-400.0,0.0001988,2]
[359065923,1745688642269,-3708.68,0.0001988,2]
[359065924,1745688642278,-825.14,0.0001988,2]
[359065925,1745688642288,-503.41,0.0001988,2]
[359065926,1745688642298,-11867.2,0.0001988,2]
[359065927,1745688642308,-767.55,0.0001988,2]
[359065928,1745688642317,-477.46,0.0001988,2]
[359065929,1745688642326,-400.0,0.0001988,2]
[359065930,1745688642336,-5922.45,0.0001988,2]
[359065931,1745688642346,-742.58,0.0001988,2]
[359065932,1745688642355,-400.0,0.0001988,2]
[359065933,1745688642365,-526.44,0.0001988,2]
[359065934,1745688642374,-2260.32,0.0001988,2]
[359065935,1745688642384,-557.44,0.0001988,2]
[359065936,1745688642395,-2711.79,0.0001988,2]
[359065937,1745688642404,-548.2,0.0001988,2]
[359065938,1745688642413,-400.0,0.0001988,2]
[359065939,1745688642424,-400.0,0.0001988,2]
[359065940,1745688642433,-400.0,0.0001988,2]
[359065941,1745688642443,-475.14,0.0001988,2]
[359065942,1745688642452,-569.47,0.0001988,2]
[359065943,1745688642461,-4617.81,0.0001988,2]
[359065944,1745688642471,-780.33,0.00019881,2]
[359065945,1745688642480,-447.5,0.00019881,2]
[359065946,1745688642490,-909.0,0.00019881,2]
[359065947,1745688642499,-693.09,0.00019881,2]
[359065948,1745688642509,-400.0,0.00019881,2]
[359065949,1745688642519,-545.91,0.00019881,2]
[359065950,1745688642529,-400.0,0.00019881,2]
[359065951,1745688642539,-400.0,0.00019881,2]
[359065952,1745688642549,-453.61,0.00019881,2]
[359065953,1745688642558,-853.76,0.00019881,2]
[359065954,1745688642567,-672.89,0.00019881,2]
[359065955,1745688642577,-400.0,0.00019881,2]
[359065956,1745688642586,-432.89,0.00019881,2]
[359065957,1745688642595,-400.0,0.00019881,2]
[359065958,1745688642605,-994.43,0.00019881,2]
[359065959,1745688642615,-537.88,0.00019881,2]
[359065960,1745688642624,-567.19,0.00019881,2]
[359065961,1745688642634,-400.0,0.00019881,2]
[359065962,1745688642643,-400.0,0.00019881,2]
[359065963,1745688642653,-400.0,0.00019881,2]
[359065964,1745688642662,-1749.88,0.00019881,2]
[359065965,1745688642673,-715.1,0.00019881,2]
[359065966,1745688642682,-400.0,0.00019881,2]
[359065967,1745688642691,-1552.37,0.00019881,2]
[359065968,1745688642701,-400.0,0.00019881,2]
[359065969,1745688642711,-781.87,0.00019881,2]
[359065970,1745688642720,-400.0,0.00019881,2]
[359065971,1745688642730,-400.0,0.00019881,2]
[359065972,1745688642739,-1935.46,0.00019881,2]
[359065973,1745688642749,-400.0,0.00019881,2]
[359065974,1745688642759,-400.0,0.00019881,2]
[359065975,1745688642768,-684.27,0.00019881,2]
[359065976,1745688642778,-400.0,0.00019881,2]
[359065977,1745688642787,-400.0,0.00019881,2]
[359065978,1745688642797,-531.91,0.00019881,2]
[359065979,1745688642806,-400.0,0.00019881,2]
[359065980,1745688642815,-820.97,0.00019881,2]
[359065981,1745688642825,-400.0,0.00019881,2]
[359065982,1745688642835,-658.4,0.00019881,2]
[359065983,1745688642844,-663.94,0.00019881,2]
[359065984,1745688642853,-601.83,0.00019881,2]
[359065985,1745688642864,-400.0,0.00019881,2]
[359065986,1745688642873,-462.15,0.00019881,2]
[359065987,1745688642883,-400.0,0.00019881,2]
[359065988,1745688642893,-662.16,0.00019881,2]
[359065989,1745688642903,-654.37,0.00019881,2]
[359065990,1745688642912,-2790.15,0.00019881,2]
[359065991,1745688642923,-361.98481845,0.00019881,2]
[359065992,1745688642933,-669.27,0.00019881,2]
[359065993,1745688642943,-400.0,0.00019881,2]
[359065994,1745688642954,-462.53,0.00019881,2]
[359065995,1745688642964,-800.44,0.00019881,2]
[359065996,1745688642974,-802.45,0.00019881,2]
[359065997,1745688642983,-400.0,0.00019881,2]
[359065998,1745688642993,-400.0,0.00019881,2]
[359065999,1745688643002,-200.0,0.00019881,2]
[359066000,1745688643012,-400.0,0.00019881,2]
[359066001,1745688643022,-400.0,0.00019881,2]
[359066002,1745688643031,-400.0,0.00019881,2]
[359066003,1745688643041,-400.0,0.00019881,2]
[359066004,1745688643050,-400.0,0.00019881,2]
[359066005,1745688643058,-400.0,0.00019881,2]
[359066006,1745688643068,-666.74,0.00019881,2]
[359066007,1745688643076,-714.12,0.00019881,2]
[359066008,1745688643085,-400.0,0.00019881,2]
[359066009,1745688643095,-400.0,0.00019881,2]
[359066010,1745688643104,-400.0,0.00019881,2]
[359066011,1745688643114,-400.0,0.00019881,2]
[359066012,1745688643123,-400.0,0.00019881,2]
[359066013,1745688643133,-285.99379223,0.00019881,2]
[359066014,1745688643142,-400.0,0.00019881,2]
[359066015,1745688643152,-862.22,0.00019881,2]
[359066016,1745688643162,-400.0,0.00019881,2]
[359066017,1745688643171,-400.0,0.00019881,2]
[359066018,1745688643181,-772.41,0.00019881,2]
[359066019,1745688643191,-400.0,0.00019881,2]
[359066020,1745688643203,-455.72,0.00019881,2]
[359066021,1745688643213,-400.0,0.00019881,2]
[359066022,1745688643223,-400.0,0.00019881,2]
[359066023,1745688643232,-419.9,0.00019881,2]
[359066024,1745688643243,-400.0,0.00019881,2]
[359066025,1745688643253,-856.29,0.00019881,2]
[359066026,1745688643262,-4451.81,0.00019881,2]
[359066027,1745688643274,-400.0,0.00019881,2]
[359066028,1745688643285,-955.58,0.00019881,2]
[359066029,1745688643294,-1098.72,0.00019881,2]
[359066030,1745688643304,-450.41,0.00019881,2]
[359066031,1745688643315,-400.0,0.00019881,2]
[359066032,1745688643324,-742.95,0.00019881,2]
[359066033,1745688643333,-400.0,0.00019881,2]
[359066034,1745688643343,-277.58244899,0.00019881,2]
[359066035,1745688643353,-404.08,0.00019881,2]
[359066042,1745688643599,-462.44,0.00019881,2]
[359066044,1745688643610,-500.0,0.00019881,2]
[359066046,1745688643620,-150.0,0.00019881,2]
[359066048,1745688643629,-465.94,0.00019881,2]
[359066050,1745688643639,-500.0,0.00019881,2]
[359066053,1745688643649,-500.0,0.00019881,2]
[359066055,1745688643659,-150.0,0.00019881,2]
[359066057,1745688643668,-150.0,0.00019881,2]
[359066059,1745688643682,-150.0,0.00019881,2]
[359066061,1745688643691,-576.0,0.00019881,2]
[359066063,1745688643702,-400.0,0.00019881,2]
[359066065,1745688643711,-868.17,0.00019881,2]
[359066067,1745688643721,-599.97,0.00019881,2]
[359066069,1745688643731,-906.08,0.00019881,2]
[359066071,1745688643741,-400.0,0.00019881,2]
[359066073,1745688643751,-400.0,0.00019881,2]
[359066075,1745688643760,-411.11,0.00019881,2]
[359066077,1745688643770,-109693.87420613,0.00019881,2]
[359066078,1745688643780,-810.91,0.00019885,2]
[359066079,1745688643790,-400.0,0.00019885,2]
[359066080,1745688643799,-400.0,0.00019885,2]
[359066081,1745688643810,-400.0,0.00019885,2]
[359066082,1745688643820,-400.0,0.00019885,2]
[359066083,1745688643830,-611.88,0.00019885,2]
[359066084,1745688643840,-400.0,0.00019885,2]
[359066085,1745688643850,-400.0,0.00019885,2]
[359066086,1745688643860,-400.0,0.00019885,2]
[359066087,1745688643869,-514.53,0.00019885,2]
[359066088,1745688643879,-400.0,0.00019885,2]
[359066089,1745688643889,-400.0,0.00019885,2]
[359066090,1745688643899,-400.0,0.00019885,2]
[359066091,1745688643909,-400.0,0.00019885,2]
[359066092,1745688643919,-300.0,0.00019885,2]
[359066093,1745688643930,-385.9230261,0.00019885,2]
[359066094,1745688643940,-300.0,0.00019885,2]
[359066095,1745688643949,-791.21,0.00019885,2]
[359066096,1745688643959,-300.0,0.00019885,2]
[359066097,1745688643968,-200.0,0.00019885,2]
[359066098,1745688643978,-648.3,0.00019885,2]
[359066099,1745688643987,-715.54,0.00019885,2]
[359066100,1745688643997,-300.0,0.00019885,2]
[359066101,1745688644007,-400.0,0.00019885,2]
[359066102,1745688644017,-400.0,0.00019885,2]
[359066103,1745688644026,-400.0,0.00019885,2]
[359066104,1745688644036,-300.0,0.00019885,2]
[359066105,1745688644045,-400.0,0.00019885,2]
[359066106,1745688644055,-409.07,0.00019885,2]
[359066107,1745688644065,-400.0,0.00019885,2]
[359066108,1745688644074,-400.0,0.00019885,2]
[359066109,1745688644085,-400.0,0.00019885,2]
[359066110,1745688644094,-400.0,0.00019885,2]
[359066111,1745688644104,-350.02092659,0.00019885,2]
[359066112,1745688644114,-334.88885956,0.00019885,2]
[359066113,1745688644124,-400.0,0.00019885,2]
[359066114,1745688644133,-400.0,0.00019885,2]
[359066115,1745688644143,-400.0,0.00019885,2]
[359066116,1745688644153,-323.59592513,0.00019885,2]
[359066117,1745688644164,-425.83,0.00019885,2]
[359066118,1745688644174,-484.77,0.00019885,2]
[359066119,1745688644184,-400.0,0.00019885,2]
[359066120,1745688644197,-400.0,0.00019885,2]
[359066121,1745688644208,-400.0,0.00019885,2]
[359066122,1745688644218,-400.0,0.00019885,2]
[359066123,1745688644227,-400.0,0.00019885,2]
[359066124,1745688644237,-417.48,0.00019885,2]
[359066125,1745688644248,-400.0,0.00019885,2]
[359066126,1745688644258,-400.0,0.00019885,2]
[359066127,1745688644268,-250.0,0.00019885,2]
[359066128,1745688644278,-400.0,0.00019885,2]
[359066129,1745688644289,-634.71,0.00019885,2]
[359066130,1745688644299,-972.58,0.00019885,2]
[359066131,1745688644309,-400.0,0.00019885,2]
[359066132,1745688644319,-465.62103783,0.00019885,2]
[359066133,1745688644329,-400.0,0.00019885,2]
[359066134,1745688644338,-598.07,0.00019885,2]
[359066135,1745688644348,-446.77,0.00019885,2]
[359066136,1745688644358,-400.0,0.00019885,2]
[359066137,1745688644368,-400.0,0.00019885,2]
[359066138,1745688644379,-400.0,0.00019885,2]
[359066139,1745688644388,-400.0,0.00019885,2]
[359066140,1745688644399,-400.0,0.00019885,2]
[359066141,1745688644410,-400.0,0.00019885,2]
[359066142,1745688644420,-400.0,0.00019885,2]
[359066143,1745688644430,-400.0,0.00019885,2]
[359066144,1745688644440,-400.0,0.00019885,2]
[359066145,1745688644450,-485.26,0.00019885,2]
[359066146,1745688644459,-400.0,0.00019885,2]
[359066147,1745688644469,-400.0,0.00019885,2]
[359066148,1745688644479,-400.0,0.00019885,2]
[359066149,1745688644488,-220.92064094,0.00019885,2]
[359066150,1745688644497,-829.71,0.00019885,2]
[359066151,1745688644507,-400.0,0.00019885,2]
[359066152,1745688644516,-284.2790831,0.00019885,2]
[359066153,1745688644526,-434.97,0.00019885,2]
[359066154,1745688644536,-657.84,0.00019885,2]
[359066155,1745688644545,-657.84,0.00019885,2]
[359066156,1745688644555,-657.84,0.00019885,2]
[359066157,1745688644565,-657.84,0.00019885,2]
[359066158,1745688644574,-657.84,0.00019885,2]
[359066159,1745688644584,-657.84,0.00019885,2]
[359066160,1745688644594,-657.84,0.00019885,2]
[359066161,1745688644604,-657.84,0.00019885,2]
[359066162,1745688644613,-657.84,0.00019885,2]
[359066163,1745688644623,-400.0,0.00019885,2]
[359066164,1745688644632,-657.84,0.00019885,2]
[359066165,1745688644642,-400.0,0.00019885,2]
[359066166,1745688644651,-657.84,0.00019885,2]
[359066167,1745688644661,-881.17,0.00019885,2]
[359066168,1745688644669,-657.84,0.00019885,2]
[359066169,1745688644679,-657.84,0.00019885,2]
[359066170,1745688644688,-657.84,0.00019885,2]
[359066171,1745688644696,-657.84,0.00019885,2]
[359066172,1745688644706,-657.84,0.00019885,2]
[359066173,1745688644716,-657.84,0.00019885,2]
[359066174,1745688644726,-657.84,0.00019885,2]
[359066175,1745688644736,-630.55,0.00019885,2]
[359066176,1745688644746,-400.0,0.00019885,2]
[359066177,1745688644755,-657.84,0.00019885,2]
[359066178,1745688644765,-657.84,0.00019885,2]
[359066179,1745688644775,-657.84,0.00019885,2]
[359066180,1745688644784,-657.84,0.00019885,2]
[359066181,1745688644794,-657.84,0.00019885,2]
[359066182,1745688644804,-657.86921698,0.00019885,2]
[359066183,1745688644814,-404.18,0.00019885,2]
[359066184,1745688644824,-485.06411496,0.00019885,2]
[359066185,1745688644834,-1025.49,0.00019885,2]
[359066186,1745688644844,-400.0,0.00019885,2]
[359066187,1745688644854,-400.0,0.00019885,2]
[359066188,1745688644863,-400.0,0.00019885,2]
[359066189,1745688644873,-400.0,0.00019885,2]
[359066190,1745688644883,-400.0,0.00019885,2]
[359066191,1745688644892,-400.0,0.00019885,2]
[359066192,1745688644902,-400.0,0.00019885,2]
[359066193,1745688644911,-275.02640054,0.00019885,2]
[359066194,1745688644921,-400.0,0.00019885,2]
[359066195,1745688644932,-400.0,0.00019885,2]
[359066196,1745688644942,-400.0,0.00019885,2]
[359066197,1745688644952,-556.49,0.00019885,2]
[359066198,1745688644962,-514.41,0.00019885,2]
[359066199,1745688644973,-400.0,0.00019885,2]
[359066200,1745688644984,-400.0,0.00019885,2]
[359066201,1745688644994,-400.0,0.00019885,2]
[359066202,1745688645004,-400.0,0.00019885,2]
[359066203,1745688645014,-400.0,0.00019885,2]
[359066204,1745688645024,-792.41,0.00019885,2]
[359066205,1745688645034,-400.0,0.00019885,2]
[359066206,1745688645043,-400.0,0.00019885,2]
[359066207,1745688645055,-400.0,0.00019885,2]
[359066208,1745688645064,-400.0,0.00019885,2]
[359066209,1745688645075,-400.0,0.00019885,2]
[359066210,1745688645085,-400.0,0.00019885,2]
[359066211,1745688645096,-400.0,0.00019885,2]
[359066212,1745688645106,-400.0,0.00019885,2]
[359066213,1745688645116,-400.0,0.00019885,2]
[359066214,1745688645126,-646.66,0.00019885,2]
[359066215,1745688645136,-400.0,0.00019885,2]
[359066216,1745688645146,-608.73,0.00019885,2]
[359066217,1745688645156,-400.0,0.00019885,2]
[359066218,1745688645166,-746.82,0.00019885,2]
[359066219,1745688645178,-643.1,0.00019885,2]
[359066220,1745688645189,-1062.7,0.00019885,2]
[359066221,1745688645203,-400.0,0.00019885,2]
[359066222,1745688645213,-400.0,0.00019885,2]
[359066223,1745688645223,-703.34,0.00019885,2]
[359066224,1745688645232,-400.0,0.00019885,2]
[359066225,1745688645243,-400.0,0.00019885,2]
[359066226,1745688645252,-400.0,0.00019885,2]
[359066227,1745688645263,-500.0,0.00019885,2]
[359066228,1745688645273,-400.0,0.00019885,2]
[359066229,1745688645283,-925.33,0.00019885,2]
[359066230,1745688645293,-400.0,0.00019885,2]
[359066231,1745688645303,-575.24,0.00019885,2]
[359066232,1745688645313,-466.39,0.00019885,2]
[359066233,1745688645322,-808.25,0.00019885,2]
[359066234,1745688645332,-400.0,0.00019885,2]
[359066235,1745688645342,-400.0,0.00019885,2]
[359066236,1745688645351,-400.0,0.00019885,2]
[359066237,1745688645361,-502.1,0.00019885,2]
[359066238,1745688645371,-630.31,0.00019885,2]
[359066239,1745688645381,-400.0,0.00019885,2]
[359066240,1745688645391,-400.0,0.00019885,2]
[359066241,1745688645400,-642.39,0.00019885,2]
[359066242,1745688645411,-310.26577707,0.00019885,2]
[359066243,1745688645420,-400.0,0.00019885,2]
[359066244,1745688645431,-400.0,0.00019885,2]
[359066245,1745688645441,-652.94,0.00019885,2]
[359066246,1745688645450,-1195.3,0.00019885,2]
[359066247,1745688645461,-400.0,0.00019885,2]
[359066248,1745688645471,-1126.58,0.00019885,2]
[359066249,1745688645480,-703.28,0.00019885,2]
[359066250,1745688645490,-460.30127748,0.00019885,2]
[359066251,1745688645499,-400.0,0.00019885,2]
[359066252,1745688645510,-400.0,0.00019885,2]
[359066253,1745688645521,-400.0,0.00019885,2]
[359066254,1745688645531,-400.0,0.00019885,2]
[359066255,1745688645541,-1267.56,0.00019885,2]
[359066256,1745688645550,-1267.56,0.00019885,2]
[359066257,1745688645560,-400.0,0.00019885,2]
[359066258,1745688645570,-1267.56,0.00019885,2]
[359066259,1745688645579,-1267.56,0.00019885,2]
[359066260,1745688645589,-1267.56,0.00019885,2]
[359066261,1745688645599,-1267.56,0.00019885,2]
[359066262,1745688645608,-1267.56,0.00019885,2]
[359066263,1745688645618,-1267.56,0.00019885,2]
[359066264,1745688645628,-1267.56,0.00019885,2]
[359066265,1745688645637,-1267.56,0.00019885,2]
[359066266,1745688645648,-1267.56,0.00019885,2]
[359066267,1745688645658,-1267.56,0.00019885,2]
[359066268,1745688645667,-1267.56,0.00019885,2]
[359066269,1745688645678,-1267.56,0.00019885,2]
[359066270,1745688645688,-1267.56,0.00019885,2]
[359066271,1745688645698,-400.0,0.00019885,2]
[359066272,1745688645708,-1267.56,0.00019885,2]
[359066273,1745688645717,-1267.56,0.00019885,2]
[359066274,1745688645728,-1267.56,0.00019885,2]
[359066275,1745688645737,-1267.56,0.00019885,2]
[359066276,1745688645747,-1267.56,0.00019885,2]
[359066277,1745688645757,-1267.56,0.00019885,2]
[359066278,1745688645767,-1267.56,0.00019885,2]
[359066279,1745688645777,-1267.56,0.00019885,2]
[359066280,1745688645787,-1267.68618555,0.00019885,2]
[359066281,1745688645796,-400.0,0.00019885,2]
[359066282,1745688645806,-483.31,0.00019885,2]
[359066283,1745688645816,-400.0,0.00019885,2]
[359066284,1745688645827,-627.01,0.00019885,2]
[359066285,1745688645838,-400.0,0.00019885,2]
[359066286,1745688645849,-400.0,0.00019885,2]
[359066287,1745688645859,-850.15,0.00019885,2]
[359066288,1745688645869,-400.0,0.00019885,2]
[359066289,1745688645879,-964.29,0.00019885,2]
[359066290,1745688645890,-400.0,0.00019885,2]
[359066291,1745688645901,-400.0,0.00019885,2]
[359066292,1745688645911,-400.0,0.00019885,2]
[359066293,1745688645921,-400.0,0.00019885,2]
[359066294,1745688645931,-400.0,0.00019885,2]
[359066295,1745688645940,-400.0,0.00019885,2]
[359066296,1745688645950,-400.0,0.00019885,2]
[359066297,1745688645960,-400.0,0.00019885,2]
[359066298,1745688645969,-499.45,0.00019885,2]
[359066299,1745688645979,-511.79,0.00019885,2]
[359066300,1745688645989,-1000.73,0.00019885,2]
[359066301,1745688645998,-400.0,0.00019885,2]
[359066302,1745688646007,-400.0,0.00019885,2]
[359066303,1745688646114,-400.0,0.00019885,2]
[359066304,1745688646124,-400.0,0.00019885,2]
[359066305,1745688646135,-757.15,0.00019885,2]
[359066306,1745688646145,-400.0,0.00019885,2]
[359066307,1745688646155,-400.0,0.00019885,2]
[359066308,1745688646165,-400.0,0.00019885,2]
[359066309,1745688646176,-400.0,0.00019885,2]
[359066310,1745688646185,-400.0,0.00019885,2]
[359066311,1745688646199,-791.09,0.00019885,2]
[359066312,1745688646210,-401.64,0.00019885,2]